bitfinex/quotes_SOLUSD_20250728
["timestamp","ask_amount","ask_price","bid_price","bid_amount"]
[1753740886542,0.03,184.23,184.21,38.48]
[1753740886744,0.03,184.23,184.22,4.30339922]
[1753740887845,0.03,184.23,184.21,38.48]
[1753740888056,0.03,184.23,184.22,4.30339922]
[1753740888850,0.03,184.23,184.22,4.95339922]
[1753740889281,0.03,184.23,184.22,4.30339922]
[1753740891074,0.03,184.23,184.21,39.02285869]
[1753740891284,0.67,184.22,184.2,0.06]
[1753740891474,0.67,184.22,184.21,38.48]
[1753740891674,4.72896772,184.22,184.21,38.48]
[1753740892089,4.72895816,184.22,184.21,38.48]
[1753740894591,4.05895816,184.22,184.21,38.48]
[1753740894797,4.05895816,184.22,184.21,42.78339922]
[1753740895097,0.03,184.23,184.21,43.97625791]
[1753740895386,0.03,184.23,184.22,4.30339922]
[1753740896091,4.08932561,184.23,184.22,4.30339922]
[1753740896794,0.03,184.23,184.22,4.30339922]
[1753740896999,0.03,184.23,184.21,39.67285869]
[1753740897000,0.03,184.23,184.21,38.48]
[1753740897203,4.75932561,184.23,184.22,38.46]
[1753740898482,4.08932561,184.23,184.22,38.46]
[1753740898682,0.03,184.23,184.22,38.46]
[1753740898883,4.08932561,184.23,184.22,38.46]
[1753740899096,0.03,184.23,184.22,38.46]
[1753740899312,4.75932561,184.23,184.2,0.06]
[1753740899484,3.67781309,184.23,184.22,42.76339922]
[1753740899688,0.2,184.27,184.26,42.78468397]
[1753740899992,0.2,184.27,184.26,86.37511771]
[1753740900194,0.2,184.27,184.26,87.02511771]
[1753740900509,0.2,184.3,184.28,6.6177]
[1753740900689,0.03,184.31,184.3,0.28432314]
[1753740900888,0.03,184.31,184.3,21.08808319]
[1753740901081,0.03,184.31,184.3,65.7783423]
[1753740901972,0.03,184.31,184.3,70.08174152]
[1753740902171,0.03,184.35,184.34,42.78468397]
[1753740902401,0.03,184.35,184.34,86.37488218]
[1753740902703,0.03,184.39,184.34,86.37488218]
[1753740902704,0.03,184.39,184.35,6.3206]
[1753740902999,0.03,184.39,184.38,30.30339922]
[1753740903218,0.03,184.39,184.38,68.76339922]
[1753740907100,0.03,184.39,184.38,90.97166492]
[1753740908618,0.03,184.39,184.38,91.49166492]
[1753740910713,0.03,184.39,184.38,85.54808319]
[1753740910920,0.03,184.39,184.38,30.84575739]
[1753740911119,0.7,184.39,184.38,0.54235817]
[1753740911312,5.00339922,184.39,184.3,6.71869359]
[1753740911516,4.30339922,184.36,184.31,42.74339922]
[1753740911718,0.67,184.35,184.31,38.44]
[1753740911912,0.67,184.34,184.32,4.30339922]
[1753740912111,0.67,184.34,184.33,38.44]
[1753740912351,5.42428699,184.36,184.28,16.78468397]
[1753740912518,4.30339922,184.32,184.29,38.44]
[1753740912704,0.67,184.31,184.3,38.44]
[1753740915913,10.3990408,184.31,184.3,38.44]
[1753740918014,10.3990408,184.31,184.28,38.44]
[1753740918217,4.30339922,184.29,184.28,38.44]
[1753740918611,4.96339922,184.29,184.28,38.44]
[1753740918911,7.66896652,184.29,184.28,38.44]
[1753740919110,7.66896652,184.29,184.26,0.06]
[1753740919111,13.09519691,184.29,184.26,0.06]
[1753740919312,7.00896652,184.27,184.26,38.5]
[1753740919616,7.66896652,184.27,184.26,38.5]
[1753740921851,13.09578586,184.27,184.26,0.06]
[1753740922146,18.70012965,184.27,184.26,0.06]
[1753740926863,18.69934126,184.27,184.26,0.06]
[1753740927068,14.66958586,184.27,184.26,0.06]
[1753740927765,40.66958586,184.27,184.26,0.06]
[1753740928260,14.953909,184.27,184.26,0.06]
[1753740929934,40.953909,184.27,184.26,0.06]
[1753740930157,14.953909,184.27,184.26,0.06]
[1753740930644,18.98345489,184.27,184.26,0.06]
[1753740931234,26.0,184.24,184.22,0.06]
[1753740931434,26.0,184.26,184.22,0.06]
[1753740931435,38.43696413,184.23,184.22,0.06]
[1753740931736,39.09696413,184.23,184.22,0.06]
[1753740932466,39.38128727,184.23,184.2,0.06]
[1753740932767,7.29328966,184.21,184.2,1e-08]
[1753740932964,11.32327908,184.21,184.2,1e-08]
[1753740933136,11.98327908,184.21,184.2,1e-08]
[1753740933342,17.41186601,184.21,184.2,1e-08]
[1753740934139,10.40289949,184.21,184.2,1e-08]
[1753740934369,39.09755345,184.21,184.2,1e-08]
[1753740934740,38.43755345,184.21,184.2,1e-08]
[1753740935566,39.09755345,184.21,184.2,1e-08]
[1753740935872,13.38187659,184.21,184.2,1e-08]
[1753740936562,25.05150808,184.21,184.2,1e-08]
[1753740937062,41.83619205,184.21,184.2,1e-08]
[1753740937279,16.78468397,184.18,184.14,0.06]
[1753740937447,38.4393222,184.15,184.14,0.06]
[1753740937950,39.0993222,184.15,184.14,0.06]
[1753740943091,39.38364534,184.15,184.14,0.06]
[1753740944974,32.37467882,184.15,184.14,0.06]
[1753740945286,35.73974471,184.15,184.14,0.06]
[1753740948259,36.42974471,184.15,184.14,0.06]
[1753740948684,41.02345688,184.15,184.14,0.06]
[1753740949965,36.71406785,184.15,184.14,0.06]
[1753740950568,57.80814085,184.15,184.14,1e-08]
[1753740951172,96.28814085,184.15,184.14,1e-08]
[1753740951373,0.28432314,184.14,184.13,1e-08]
[1753740951582,43.76371217,184.14,184.13,1e-08]
[1753740951770,51.76565498,184.14,184.13,1e-08]
[1753740952086,56.07504401,184.14,184.13,1e-08]
[1753740952294,61.5056946,184.14,184.13,1e-08]
[1753740953581,0.28432314,184.13,184.12,1e-08]
[1753740953786,13.28565498,184.13,184.12,1e-08]
[1753740954171,18.0266005,184.13,184.12,1e-08]
[1753740954371,18.7166005,184.13,184.12,1e-08]
[1753740955264,22.324635,184.13,184.12,1e-08]
[1753740956592,39.10931897,184.13,184.12,1e-08]
[1753740956976,22.324635,184.13,184.12,1e-08]
[1753740957286,21.35031186,184.13,184.12,1e-08]
[1753740957491,21.38267449,184.13,184.12,1e-08]
[1753740958290,22.35699763,184.13,184.12,1e-08]
[1753740959110,17.77463999,184.13,184.12,1e-08]
[1753740959264,21.3934564,184.13,184.12,1e-08]
[1753740960171,47.40198008,184.13,184.12,1e-08]
[1753740960390,48.37630322,184.13,184.12,1e-08]
[1753740961591,50.38826254,184.13,184.12,1e-08]
[1753740961980,48.37630322,184.13,184.12,1e-08]
[1753740962504,30.30938903,184.11,184.1,0.06]
[1753740962666,41.97103456,184.11,184.1,0.06]
[1753740964185,42.66103456,184.11,184.1,0.06]
[1753740964495,48.09257005,184.11,184.1,0.06]
[1753740964715,48.37689319,184.11,184.1,1e-08]
[1753740964873,0.28432314,184.1,184.09,0.06]
[1753740965183,16.9453577,184.1,184.09,0.06]
[1753740965379,57.43743724,184.1,184.09,0.06]
[1753740966096,55.4253577,184.1,184.09,0.06]
[1753740966471,60.85718822,184.1,184.09,0.06]
[1753740966668,0.28432314,184.08,184.07,0.1]
[1753740967001,57.43734948,184.08,184.06,0.06]
[1753740967197,38.63596867,184.07,184.06,0.06]
[1753740967570,42.9453577,184.07,184.06,0.06]
[1753740968493,44.35665895,184.07,184.06,0.06]
[1753740968687,39.64524439,184.07,184.06,0.06]
[1753740969488,40.33524439,184.07,184.06,0.06]
[1753740969689,77.84092125,184.07,184.06,0.06]
[1753740969893,39.36092125,184.07,184.06,0.06]
[1753740970798,42.06761185,184.07,184.06,0.06]
[1753740970995,46.09628238,184.07,184.06,0.06]
[1753740971190,50.12495291,184.07,184.06,0.06]
[1753740971390,50.81495291,184.07,184.03,0.1]
[1753740971574,4.30938903,184.04,184.03,0.1]
[1753740971778,12.36673009,184.04,184.03,0.1]
[1753740973782,17.80033148,184.04,184.03,0.1]
[1753740973981,8.05734106,184.04,184.03,0.62]
[1753740974208,12.36673009,184.04,184.03,0.62]
[1753740974525,8.05734106,184.04,184.03,0.62]
[1753740974690,12.36673009,184.04,184.03,0.62]
[1753740974883,8.33805956,184.04,184.03,0.62]
[1753740975078,13.77166095,184.04,184.03,0.62]
[1753740975484,13.77166095,184.04,184.03,0.1]
[1753740975694,17.80614362,184.04,184.03,0.1]
[1753740975911,21.43511834,184.04,184.03,0.1]
[1753740976690,21.44302654,184.04,184.03,0.1]
[1753740977086,17.81405182,184.04,184.03,0.1]
[1753740977302,21.44712987,184.04,184.03,0.1]
[1753740977610,17.81405182,184.04,184.03,0.1]
[1753740978414,21.44823361,184.04,184.03,0.1]
[1753740981909,22.12823361,184.04,184.03,0.1]
[1753740983709,48.12823361,184.04,184.03,0.1]
[1753740983891,48.41255675,184.04,184.03,0.1]
[1753740984093,26.0,184.01,183.99,0.06]
[1753740984290,42.30558006,184.0,183.99,0.06]
[1753740984484,42.98558006,184.0,183.99,0.06]
[1753740985406,42.02125692,184.0,183.99,0.06]
[1753740985604,47.45603952,184.0,183.99,0.06]
[1753740986285,44.37925529,184.0,183.99,0.06]
[1753740986688,0.28432314,183.99,183.95,0.06]
[1753740986900,30.30938903,183.96,183.95,0.06]
[1753740987099,35.02596776,183.96,183.95,0.06]
[1753740987417,34.34596776,183.96,183.95,0.06]
[1753740987998,40.4619321,183.96,183.95,0.06]
[1753740988692,44.37522484,183.96,183.95,0.06]
[1753740988895,91.21632175,183.96,183.95,0.06]
[1753740989123,91.21632175,183.96,183.94,0.1]
[1753740989124,0.28432314,183.95,183.94,0.1]
[1753740989424,29.72394447,183.95,183.94,0.1]
[1753740989801,26.0,183.92,183.86,7.1664]
[1753740990011,9.74763636,183.89,183.86,7.1664]
[1753740990212,9.74763636,183.89,183.84,0.62]
[1753740990213,8.33474935,183.88,183.84,0.62]
[1753740990527,8.33431055,183.87,183.84,0.1]
[1753740990724,4.30938903,183.87,183.84,0.1]
[1753740991101,4.30938903,183.87,183.84,0.62]
[1753740991811,12.46995847,183.87,183.84,0.62]
[1753740992114,12.46995847,183.87,183.84,0.1]
[1753740992514,12.46995847,183.87,183.84,0.62]
[1753740993515,8.16056944,183.87,183.84,0.62]
[1753740993721,12.46995847,183.87,183.84,0.1]
[1753740994292,4.30938903,183.88,183.84,0.62]
[1753740994914,31.43826305,183.89,183.84,4.40938903]
[1753740995120,31.43826305,183.89,183.85,4.82938903]
[1753740995321,36.42765208,183.89,183.84,4.40938903]
[1753740995499,39.13278634,183.89,183.84,4.92938903]
[1753740995701,4.98938903,183.88,183.84,0.1]
[1753740996807,0.68,183.87,183.84,0.1]
[1753740997498,4.30938903,183.88,183.84,0.1]
[1753740997698,4.98938903,183.88,183.84,0.1]
[1753740998015,5.43841391,183.88,183.84,4.92938903]
[1753740998422,4.30938903,183.87,183.84,0.1]
[1753740998604,4.30938903,183.86,183.84,0.1]
[1753740998808,4.98938903,183.86,183.84,0.1]
[1753740999326,4.30938903,183.87,183.84,0.1]
[1753740999803,5.43892091,183.86,183.84,0.1]
[1753741000004,10.4280596,183.87,183.84,0.1]
[1753741001817,0.68,183.87,183.84,0.1]
[1753741002322,6.11866579,183.87,183.84,0.1]
[1753741002827,4.0028819,183.86,183.84,0.1]
[1753741003519,9.4418589,183.86,183.84,0.1]
[1753741003698,4.6828819,183.85,183.84,0.1]
[1753741003901,4.0028819,183.85,183.84,0.1]
[1753741005023,4.0028819,183.85,183.84,4.92938903]
[1753741005321,4.0028819,183.88,183.84,4.92938903]
[1753741005528,4.0028819,183.87,183.85,4.30938903]
[1753741005699,4.0028819,183.87,183.84,4.40938903]
[1753741005898,10.1215195,183.87,183.84,4.40938903]
[1753741006214,4.0028819,183.86,183.84,4.40938903]
[1753741006729,4.6828819,183.86,183.84,0.1]
[1753741006934,4.0028819,183.85,183.84,0.1]
[1753741007811,10.12209865,183.85,183.84,0.1]
[1753741008016,4.6828819,183.85,183.84,0.1]
[1753741009442,4.0028819,183.85,183.84,0.1]
[1753741009599,4.6828819,183.85,183.84,0.1]
[1753741010230,4.0028819,183.85,183.84,0.1]
[1753741010710,4.0028819,183.86,183.84,0.1]
[1753741011018,4.0028819,183.85,183.84,0.1]
[1753741011843,4.0028819,183.85,183.84,4.40938903]
[1753741012333,4.0028819,183.87,183.84,4.40938903]
[1753741012537,4.0028819,183.86,183.84,4.40938903]
[1753741012720,4.0028819,183.85,183.84,4.40938903]
[1753741014140,4.0028819,183.87,183.84,4.40938903]
[1753741014341,4.0028819,183.86,183.84,4.40938903]
[1753741014660,0.68,183.9,183.84,0.1]
[1753741014862,4.00522049,183.89,183.84,5.53947379]
[1753741015158,154.43716168,183.92,183.84,5.53947379]
[1753741015159,4.00522049,183.88,183.85,0.52]
[1753741015366,4.00522049,183.87,183.86,0.52]
[1753741015669,4.00522049,183.87,183.84,0.62]
[1753741015823,5.43752579,183.91,183.86,4.30938903]
[1753741016028,5.43752579,183.91,183.87,4.30938903]
[1753741016029,4.68613305,183.9,183.87,4.30938903]
[1753741016362,4.68613305,183.89,183.87,4.30938903]
[1753741016590,4.00613305,183.88,183.87,4.30938903]
[1753741017153,4.00613305,183.88,183.87,4.82938903]
[1753741017334,4.00613305,183.91,183.87,4.30938903]
[1753741017562,4.00613305,183.9,183.88,0.52]
[1753741017871,4.00613305,183.89,183.85,45.25912167]
[1753741018039,5.43566885,183.97,183.87,16.78468397]
[1753741018228,4.00926015,183.96,183.89,16.78468397]
[1753741018428,4.00926015,183.95,183.9,0.54377379]
[1753741018631,4.00926015,183.94,183.91,38.5]
[1753741018963,4.28892554,183.97,183.93,4.30938903]
[1753741019162,4.01049769,183.96,183.95,4.30938903]
[1753741019364,4.01049769,183.96,183.95,4.82938903]
[1753741019528,0.03,183.98,183.95,22.15769898]
[1753741019730,0.03,183.98,183.97,4.30938903]
[1753741020254,0.03,183.98,183.97,4.82938903]
[1753741020669,0.03,183.98,183.97,5.37295591]
[1753741020972,0.03,183.98,183.97,22.15763988]
[1753741021153,0.03,183.98,183.97,27.59330873]
[1753741022378,0.03,183.98,183.97,27.87763187]
[1753741023956,0.03,184.02,184.0,16.78468397]
[1753741024161,4.04500714,184.02,184.01,43.35283775]
[1753741024362,0.03,184.02,184.01,43.35283775]
[1753741024683,0.03,184.02,184.01,60.65752172]
[1753741024990,4.01345368,184.04,184.02,16.78468397]
[1753741025155,0.68,184.08,184.03,4.85277869]
[1753741025361,0.68,184.08,184.07,4.30938903]
[1753741025675,4.69253452,184.08,184.07,42.80938903]
[1753741026763,4.01253452,184.08,184.07,42.80938903]
[1753741027178,4.01253452,184.09,184.07,42.80938903]
[1753741027386,4.69253452,184.09,184.08,4.30938903]
[1753741027594,4.01253452,184.09,184.08,4.30938903]
[1753741028188,4.69253452,184.09,184.08,4.30938903]
[1753741028696,4.01253452,184.09,184.08,4.30938903]
[1753741029003,0.2,184.13,184.08,10.26180971]
[1753741029203,0.2,184.13,184.09,1.06321255]
[1753741029204,4.00670123,184.12,184.09,1.06321255]
[1753741029493,0.2,184.13,184.1,38.48]
[1753741030489,0.2,184.13,184.12,4.30938903]
[1753741031791,0.88,184.13,184.07,6.6196]
[1753741031999,4.67468012,184.12,184.1,4.30938903]
[1753741032297,0.2,184.13,184.11,42.76938903]
[1753741032460,3.99160148,184.12,184.11,38.46]
[1753741032784,0.2,184.13,184.11,38.46]
[1753741032785,0.2,184.13,184.12,16.78468397]
[1753741032978,0.2,184.13,184.12,42.76938903]
[1753741034686,0.2,184.13,184.12,60.61719704]
[1753741035070,0.2,184.13,184.12,60.09719704]
[1753741036871,0.2,184.13,184.12,60.61719704]
[1753741038766,0.2,184.13,184.12,70.35782656]
[1753741038989,0.03,184.17,184.14,0.28432314]
[1753741039284,0.03,184.17,184.16,21.094073]
[1753741039483,0.03,184.17,184.16,21.89839614]
[1753741040894,0.03,184.17,184.16,27.32845695]
[1753741043971,0.03,184.2,184.19,47.37839614]
[1753741044185,0.03,184.2,184.19,85.81839614]
[1753741044383,0.03,184.2,184.19,86.33839614]
[1753741044673,0.03,184.2,184.19,87.98199614]
[1753741044874,0.03,184.2,184.19,93.41117253]
[1753741045291,0.03,184.21,184.2,25.68778517]
[1753741045593,0.03,184.21,184.2,26.75067333]
[1753741045794,0.03,184.21,184.2,21.63696116]
[1753741046104,0.73,184.21,184.2,59.534073]
[1753741047688,0.03,184.21,184.2,59.534073]
[1753741048289,0.73,184.21,184.2,59.534073]
[1753741048998,0.73,184.21,184.15,8.39073556]
[1753741049193,0.73,184.21,184.18,4.30938903]
[1753741049394,6.15858693,184.21,184.19,38.44]
[1753741049591,0.7,184.2,184.13,0.54309455]
[1753741049779,4.30938903,184.19,184.14,4.30938903]
[1753741049981,0.7,184.18,184.15,38.42]
[1753741050195,5.00938903,184.18,184.15,38.42]
[1753741050386,0.7,184.17,184.15,38.42]
[1753741050694,0.7,184.19,184.16,4.30938903]
[1753741050996,0.7,184.18,184.17,42.72938903]
[1753741051200,0.7,184.2,184.17,42.72938903]
[1753741051380,0.7,184.19,184.18,4.30938903]
[1753741051582,0.7,184.19,184.17,42.72938903]
[1753741053400,5.00938903,184.18,184.13,4.30938903]
[1753741053582,4.66399258,184.17,184.14,38.42]
[1753741053900,0.7,184.16,184.14,38.42]
[1753741054082,0.7,184.16,184.12,4.30938903]
[1753741054284,8.27251456,184.15,184.13,38.42]
[1753741054498,4.66312553,184.14,184.13,38.42]
[1753741055001,10.09377612,184.14,184.13,38.42]
[1753741055391,14.408325,184.14,184.07,43.46938903]
[1753741055592,14.408325,184.14,184.08,38.44]
[1753741055593,8.97767441,184.13,184.08,38.44]
[1753741055795,4.66828538,184.12,184.08,38.44]
[1753741055977,4.66828538,184.11,184.08,42.74938903]
[1753741056183,3.96828538,184.1,184.08,42.74938903]
[1753741056380,3.96828538,184.1,184.08,38.44]
[1753741056699,4.66828538,184.09,184.08,38.44]
[1753741058105,3.96828538,184.09,184.08,38.44]
[1753741058691,4.66828538,184.09,184.08,38.44]
[1753741059102,5.43158316,184.11,184.08,38.44]
[1753741059283,4.30938903,184.13,184.09,4.30938903]
[1753741059284,3.97701142,184.1,184.09,4.30938903]
[1753741059896,27.5675,184.15,184.09,21.614073]
[1753741059897,3.97701142,184.12,184.09,21.614073]
[1753741060096,26.7,184.15,184.11,4.30938903]
[1753741060406,26.7,184.15,184.13,4.30938903]
[1753741060407,3.98279148,184.14,184.13,4.30938903]
[1753741060605,3.98279148,184.14,184.13,60.61716755]
[1753741060786,3.98279148,184.14,184.13,60.90149069]
[1753741061104,3.98279148,184.14,184.13,60.09716755]
[1753741061894,3.98279148,184.14,184.13,60.61716755]
[1753741062406,3.98279148,184.14,184.13,60.09716755]
[1753741063081,4.68279148,184.14,184.13,43.33248358]
[1753741063277,3.98279148,184.14,184.13,43.33248358]
[1753741063686,4.68279148,184.14,184.13,42.78938903]
[1753741063897,7.98783187,184.14,184.13,42.78938903]
[1753741064685,8.68783187,184.14,184.13,42.78938903]
[1753741065602,7.98783187,184.14,184.13,42.78938903]
[1753741066284,7.98783187,184.14,184.13,60.094073]
[1753741066481,3.98279148,184.14,184.13,66.35243621]
[1753741066925,3.98279148,184.14,184.13,60.92149069]
[1753741067707,3.98279148,184.14,184.13,60.40149069]
[1753741069210,0.71,184.18,184.14,16.78468397]
[1753741069416,10.15447739,184.17,184.15,39.00303556]
[1753741069606,8.73836964,184.16,184.14,4.30938903]
[1753741069906,4.01469759,184.15,184.14,4.30938903]
[1753741070091,4.72469759,184.15,184.14,4.30938903]
[1753741070291,4.72469759,184.15,184.14,42.76938903]
[1753741070701,4.01469759,184.15,184.14,42.76938903]
[1753741071096,4.01469759,184.15,184.14,64.66778517]
[1753741071610,4.01469759,184.15,184.14,65.21085022]
[1753741071800,6.16860025,184.21,184.15,16.78468397]
[1753741072005,8.03381618,184.2,184.18,4.30938903]
[1753741072203,3.64532231,184.21,184.19,38.52]
[1753741072405,8.74660888,184.2,184.19,38.52]
[1753741073289,4.72830444,184.2,184.19,38.52]
[1753741073490,4.72830444,184.2,184.19,42.82938903]
[1753741073491,4.01830444,184.2,184.19,42.82938903]
[1753741076816,4.05135391,184.21,184.2,16.78468397]
[1753741077028,4.05135391,184.21,184.2,21.63696116]
[1753741077395,0.03,184.21,184.2,21.63696116]
[1753741080595,0.74,184.21,184.2,4.30938903]
[1753741081024,4.75786398,184.21,184.2,38.46]
[1753741081723,4.75825478,184.21,184.2,38.46]
[1753741082297,0.74,184.21,184.2,38.46]
[1753741083012,6.16858693,184.21,184.2,38.46]
[1753741085024,0.74,184.21,184.2,38.46]
[1753741087110,0.03,184.21,184.2,42.76938903]
[1753741088004,0.03,184.21,184.2,60.074073]
[1753741088224,0.03,184.21,184.2,65.78727779]
[1753741090304,0.03,184.21,184.2,66.33016595]
[1753741090833,0.03,184.21,184.2,17.32757213]
[1753741091127,5.04938903,184.21,184.2,38.42]
[1753741091303,0.03,184.21,184.2,38.42]
[1753741091704,0.74,184.21,184.2,38.42]
[1753741092121,0.74,184.21,184.18,0.54294711]
[1753741092313,4.30938903,184.2,184.19,38.42]
[1753741092522,5.01938903,184.2,184.19,38.42]
[1753741093210,10.44827068,184.2,184.19,38.42]
[1753741095035,14.47585262,184.2,184.19,38.42]
[1753741095959,14.47585262,184.2,184.13,0.06]
[1753741096121,4.30938903,184.17,184.14,38.42]
[1753741096323,0.67,184.16,184.14,38.42]
[1753741096629,0.67,184.15,184.14,38.42]
[1753741098951,0.67,184.19,184.14,42.72938903]
[1753741099256,0.03,184.21,184.18,4.30938903]
[1753741099451,0.03,184.21,184.2,21.094073]
[1753741099833,0.03,184.21,184.2,21.614073]
[1753741100559,0.03,184.21,184.2,21.094073]
[1753741101741,0.03,184.21,184.2,4.30938903]
[1753741102839,0.03,184.21,184.2,24.31500194]
[1753741103025,0.03,184.21,184.2,24.59932508]
[1753741103827,0.03,184.21,184.2,30.02820673]
[1753741104028,0.03,184.21,184.2,23.79500194]
[1753741104256,0.03,184.21,184.2,38.44]
[1753741105138,0.03,184.21,184.2,45.45031797]
[1753741106126,0.03,184.21,184.2,38.44]
[1753741106334,0.7,184.21,184.2,38.44]
[1753741106739,0.03,184.21,184.2,38.44]
[1753741107150,0.7,184.21,184.2,38.44]
[1753741107349,4.73640276,184.21,184.2,38.44]
[1753741108247,4.06640276,184.21,184.2,38.44]
[1753741108449,4.06640276,184.21,184.2,68.72677175]
[1753741108749,0.03,184.21,184.2,69.01109489]
[1753741110768,0.03,184.21,184.2,24.62221324]
[1753741110944,0.03,184.21,184.2,45.97320613]
[1753741111756,0.7,184.21,184.2,0.54288816]
[1753741111947,0.7,184.21,184.2,38.42]
[1753741112757,4.73897421,184.21,184.2,38.42]
[1753741112957,4.06897421,184.21,184.2,38.42]
[1753741113259,4.06897421,184.21,184.2,45.43031797]
[1753741114656,0.03,184.21,184.2,45.43031797]
[1753741115356,0.03,184.21,184.2,38.42]
[1753741117147,0.03,184.21,184.2,45.43031797]
[1753741117349,0.03,184.21,184.2,50.85919962]
[1753741118464,0.03,184.21,184.2,45.43031797]
[1753741119168,0.03,184.21,184.2,67.64388359]
[1753741120262,0.03,184.21,184.2,68.44820673]
[1753741122255,0.03,184.21,184.2,94.44820673]
[1753741122851,0.03,184.21,184.2,91.73871626]
[1753741123661,0.03,184.21,184.2,91.21871626]
[1753741125260,0.03,184.21,184.2,91.73871626]
[1753741126145,0.03,184.21,184.2,72.16991626]
[1753741126356,0.03,184.25,184.24,48.4967101]
[1753741126556,0.03,184.25,184.24,91.76030789]
[1753741126852,1e-08,184.25,184.24,53.86030789]
[1753741127171,1e-08,184.25,184.24,92.28030789]
[1753741127361,1e-08,184.25,184.24,91.76030789]
[1753741127666,1e-08,184.25,184.24,92.28030789]
[1753741127866,0.03,184.28,184.24,105.84956538]
[1753741128067,1e-08,184.28,184.27,21.36983461]
[1753741128279,1e-08,184.28,184.27,66.42251654]
[1753741128566,0.2,184.32,184.31,17.06900711]
[1753741128752,0.2,184.32,184.31,63.03050542]
[1753741128953,0.2,184.32,184.31,63.55050542]
[1753741129952,0.2,184.32,184.31,63.03050542]
[1753741131368,0.2,184.32,184.31,68.456147]
[1753741131856,0.2,184.32,184.31,68.976147]
[1753741132055,1e-08,184.32,184.31,68.976147]
[1753741132272,0.03,184.35,184.34,42.78468397]
[1753741132469,0.03,184.35,184.34,89.01041712]
[1753741132676,0.03,184.35,184.34,82.01148296]
[1753741132876,0.03,184.35,184.34,89.01041712]
[1753741133057,0.03,184.35,184.34,89.53041712]
[1753741133370,0.75,184.35,184.34,81.72715982]
[1753741133576,0.75,184.35,184.34,33.54141001]
[1753741133750,0.75,184.35,184.34,76.88369275]
[1753741133951,0.75,184.35,184.34,71.45893416]
[1753741134490,0.03,184.35,184.34,93.66837672]
[1753741135791,0.75,184.35,184.34,88.24361813]
[1753741136000,0.75,184.35,184.34,62.78609398]
[1753741136480,0.75,184.35,184.34,0.54247585]
[1753741136671,0.75,184.35,184.34,38.48]
[1753741141569,0.03,184.35,184.34,45.47893416]
[1753741141775,0.03,184.35,184.34,67.68837672]
[1753741142081,0.03,184.35,184.34,68.23085257]
[1753741142777,0.03,184.35,184.34,68.51517571]
[1753741143155,0.03,184.35,184.34,69.03517571]
[1753741143764,0.03,184.35,184.34,75.27897571]
[1753741144168,0.03,184.35,184.34,62.74609398]
[1753741144359,0.75,184.35,184.32,6.99893416]
[1753741144684,0.03,184.35,184.34,23.78361813]
[1753741144855,0.75,184.35,184.34,23.78361813]
[1753741145055,0.75,184.35,184.34,6.99893416]
[1753741145256,0.75,184.35,184.31,16.78468397]
[1753741145555,7.74893416,184.35,184.32,38.4]
[1753741145752,0.72,184.34,184.32,45.39893416]
[1753741145965,0.72,184.34,184.33,0.54250528]
[1753741146164,0.72,184.34,184.32,38.4]
[1753741146380,0.72,184.34,184.32,38.94253472]
[1753741146875,0.72,184.34,184.32,45.94146888]
[1753741147059,0.72,184.34,184.33,6.99893416]
[1753741147260,0.72,184.34,184.32,38.94253472]
[1753741147460,0.72,184.34,184.33,6.99893416]
[1753741148080,0.03,184.35,184.34,16.78468397]
[1753741148284,0.03,184.35,184.34,68.17085257]
[1753741148872,0.03,184.35,184.34,62.74609398]
[1753741149684,0.03,184.35,184.34,24.32609398]
[1753741149866,0.03,184.35,184.3,6.99893416]
[1753741149867,0.75,184.35,184.3,6.99893416]
[1753741150056,7.74893416,184.35,184.31,38.42]
[1753741150261,12.45345312,184.35,184.31,38.42]